fUST/lending_fUST_20250304
["ID","MTS","AMOUNT","RATE_DAILY","PERIOD"]
[355220070,1741024239248,-200.76096023,0.00021973,2]
[355220071,1741024239258,-504.03364983,0.00021973,2]
[355220072,1741024239271,-500.0,0.00021973,2]
[355220073,1741024239284,-159.17207355,0.00021973,2]
[355220074,1741024239294,-500.0,0.00021973,2]
[355220075,1741024239304,-240.59349636,0.00021973,2]
[355220076,1741024239315,-500.0,0.00021973,2]
[355220077,1741024239326,-500.0,0.00021973,2]
[355220078,1741024239335,-500.0,0.00021973,2]
[355220079,1741024239345,-764.17,0.00021988,3]
[355220080,1741024239355,-1056.42,0.00021989,3]
[355220081,1741024239366,-611.3,0.00021989,3]
[355220082,1741024239381,-152.83,0.00021989,3]
[355220083,1741024239391,-305.65,0.0002199,3]
[355220084,1741024239402,-500.0,0.00021997,2]
[355220085,1741024239411,-500.0,0.00021997,2]
[355220086,1741024239421,-406.28175011,0.00021997,2]
[355220087,1741024239432,-366.88625785,0.00021997,2]
[355220088,1741024239441,-500.0,0.00021997,2]
[355220089,1741024239451,-500.0,0.00021997,2]
[355220090,1741024239462,-500.0,0.00021997,2]
[355220091,1741024239472,-500.0,0.00021997,2]
[355220092,1741024239482,-500.0,0.00021997,2]
[355220093,1741024239491,-500.0,0.00021997,2]
[355220094,1741024239501,-500.0,0.00021997,2]
[355220095,1741024239511,-303.80631448,0.00021997,2]
[355220096,1741024239521,-500.0,0.00021997,2]
[355220097,1741024239532,-500.0,0.00021997,2]
[355220098,1741024239542,-646.51885439,0.00021997,2]
[355220099,1741024239552,-500.0,0.00021997,2]
[355220100,1741024239562,-500.0,0.00021997,2]
[355220101,1741024239573,-500.0,0.00021997,2]
[355220102,1741024239585,-500.0,0.00021997,2]
[355220103,1741024239596,-500.0,0.00021997,2]
[355220104,1741024239606,-500.0,0.00021997,2]
[355220105,1741024239619,-500.0,0.00021997,2]
[355220106,1741024239631,-500.0,0.00021997,2]
[355220107,1741024239641,-500.0,0.00021997,2]
[355220108,1741024239652,-500.0,0.00021997,2]
[355220109,1741024239662,-487.95712076,0.00021997,2]
[355220110,1741024239673,-217.87866291,0.00021997,2]
[355220111,1741024239683,-500.0,0.00021997,2]
[355220112,1741024239694,-500.0,0.00021997,2]
[355220113,1741024239704,-500.0,0.00021997,2]
[355220114,1741024239714,-500.0,0.00021997,2]
[355220115,1741024239724,-500.0,0.00021997,2]
[355220116,1741024239733,-500.0,0.00021997,2]
[355220117,1741024239743,-500.0,0.00021997,2]
[355220118,1741024239753,-500.0,0.00021997,2]
[355220119,1741024239764,-229.06659679,0.00021997,2]
[355220120,1741024239775,-500.0,0.00021997,2]
[355220121,1741024239785,-500.0,0.00021997,2]
[355220122,1741024239795,-500.0,0.00021997,2]
[355220123,1741024239806,-500.0,0.00021997,2]
[355220124,1741024239816,-500.0,0.00021997,2]
[355220125,1741024239825,-500.0,0.00021997,2]
[355220126,1741024239835,-500.0,0.00021997,2]
[355220127,1741024239845,-500.0,0.00021997,2]
[355220128,1741024239856,-358.08104522,0.00021997,2]
[355220129,1741024239869,-500.0,0.00021997,2]
[355220130,1741024239879,-500.0,0.00021997,2]
[355220131,1741024239889,-254.66670432,0.00021997,2]
[355220132,1741024239899,-500.0,0.00021997,2]
[355220133,1741024239909,-500.0,0.00021997,2]
[355220134,1741024239919,-500.0,0.00021997,2]
[355220135,1741024239929,-500.0,0.00021997,2]
[355220136,1741024239940,-500.0,0.00021997,2]
[355220137,1741024239950,-500.0,0.00021997,2]
[355220138,1741024239960,-500.0,0.00021997,2]
[355220139,1741024239971,-500.0,0.00021997,2]
[355220140,1741024239982,-500.0,0.00021997,2]
[355220141,1741024239993,-500.0,0.00021997,2]
[355220142,1741024240004,-500.0,0.00021997,2]
[355220143,1741024240014,-500.0,0.00021997,2]
[355220144,1741024240025,-500.0,0.00021997,2]
[355220145,1741024240035,-151.0,0.00021998,7]
[355220146,1741024240045,-151.0,0.00021998,7]
[355220147,1741024240054,-153.984701,0.00021998,7]
[355220148,1741024240065,-500.0,0.00021998,2]
[355220149,1741024240076,-399.29937214,0.00021998,2]
[355220150,1741024240087,-936.73674591,0.00021998,2]
[355220151,1741024240097,-13783.05,0.00021999,2]
[355220152,1741024240106,-151.0,0.00021999,7]
[355220153,1741024240119,-671.26,0.00021999,2]
[355220155,1741024240131,-151.0,0.00021999,7]
[355220156,1741024240141,-151.0,0.00021999,7]
[355220157,1741024240151,-500.0,0.00021999,2]
[355220158,1741024240161,-151.0,0.00021999,7]
[355220159,1741024240171,-500.0,0.00021999,2]
[355220160,1741024240181,-500.0,0.00021999,2]
[355220161,1741024240191,-500.0,0.00021999,2]
[355220162,1741024240201,-90435.13132364,0.00022,2]
[355220163,1741024240211,-151.0,0.00022,7]
[355220164,1741024240220,-151.0,0.00022,7]
[355220165,1741024240230,-151.0,0.00022,7]
[355220166,1741024240242,-151.0,0.00022,7]
[355220167,1741024240253,-151.0,0.00022,4]
[355220168,1741024240263,-151.0,0.000221,7]
[355220169,1741024240278,-151.0,0.000221,9]
[355220170,1741024240288,-558.078098,0.000221,2]
[355220171,1741024240298,-277.8891199,0.000221,2]
[355220172,1741024240311,-151.0,0.000222,9]
[355220173,1741024240325,-151.0,0.000222,9]
[355220174,1741024240336,-500.0,0.00022272,2]
[355220175,1741024240348,-13783.05,0.00022273,2]
[355220176,1741024240359,-671.26,0.00022273,2]
[355220177,1741024240374,-500.0,0.00022273,2]
[355220178,1741024240385,-500.0,0.00022273,2]
[355220179,1741024240397,-500.0,0.00022273,2]
[355220180,1741024240409,-151.0,0.000223,8]
[355220181,1741024240420,-151.0,0.000223,5]
[355220182,1741024240430,-205.9915196,0.00022312,2]
[355220183,1741024240441,-2840.58821333,0.00022363,30]
[355220184,1741024240452,-500.0,0.00022398,2]
[355220185,1741024240464,-500.0,0.00022398,2]
[355220186,1741024240475,-151.0,0.00022398,7]
[355220187,1741024240486,-151.0,0.00022398,7]
[355220188,1741024240497,-500.0,0.00022398,2]
[355220189,1741024240508,-500.0,0.00022398,2]
[355220190,1741024240518,-500.0,0.00022398,2]
[355220191,1741024240528,-500.0,0.00022398,2]
[355220192,1741024240539,-500.0,0.00022398,2]
[355220193,1741024240549,-500.0,0.00022398,2]
[355220194,1741024240560,-500.0,0.00022398,2]
[355220195,1741024240571,-500.0,0.00022398,2]
[355220196,1741024240581,-500.0,0.00022398,2]
[355220197,1741024240592,-500.0,0.00022398,2]
[355220198,1741024240603,-500.0,0.00022398,2]
[355220199,1741024240614,-500.0,0.00022398,2]
[355220200,1741024240632,-500.0,0.00022398,2]
[355220201,1741024240643,-500.0,0.00022398,2]
[355220202,1741024240654,-503.5392654,0.00022398,2]
[355220203,1741024240666,-500.0,0.00022398,2]
[355220204,1741024240677,-500.0,0.00022398,2]
[355220205,1741024240688,-500.0,0.00022398,2]
[355220206,1741024240699,-500.0,0.00022398,2]
[355220207,1741024240711,-500.0,0.00022398,2]
[355220208,1741024240722,-500.0,0.00022398,2]
[355220209,1741024240733,-500.0,0.00022398,2]
[355220210,1741024240743,-500.0,0.00022398,2]
[355220211,1741024240753,-500.0,0.00022398,2]
[355220212,1741024240764,-500.0,0.00022398,2]
[355220213,1741024240774,-500.0,0.00022398,2]
[355220214,1741024240784,-563.63,0.00022398,2]
[355220215,1741024240794,-500.0,0.00022398,2]
[355220216,1741024240804,-500.0,0.00022398,2]
[355220217,1741024240814,-565.68069258,0.00022398,2]
[355220218,1741024240824,-500.0,0.00022398,2]
[355220219,1741024240834,-500.0,0.00022398,2]
[355220220,1741024240843,-500.0,0.00022398,2]
[355220221,1741024240853,-500.0,0.00022398,2]
[355220222,1741024240863,-500.0,0.00022398,2]
[355220223,1741024240878,-500.0,0.00022398,2]
[355220224,1741024240888,-500.0,0.00022398,2]
[355220225,1741024240899,-500.0,0.00022398,2]
[355220226,1741024240908,-500.0,0.00022398,2]
[355220227,1741024240918,-500.0,0.00022398,2]
[355220229,1741024240928,-500.0,0.00022398,2]
[355220230,1741024240938,-500.0,0.00022398,2]
[355220231,1741024240948,-500.0,0.00022398,2]
[355220232,1741024240958,-500.0,0.00022398,2]
[355220233,1741024240968,-500.0,0.00022398,2]
[355220234,1741024240978,-500.0,0.00022398,2]
[355220235,1741024240989,-500.0,0.00022398,2]
[355220236,1741024241000,-547.15,0.00022398,2]
[355220237,1741024241010,-501.82850122,0.00022398,2]
[355220238,1741024241020,-500.0,0.00022398,2]
[355220239,1741024241031,-500.0,0.00022398,2]
[355220240,1741024241041,-500.0,0.00022398,2]
[355220241,1741024241052,-501.03410407,0.00022398,2]
[355220242,1741024241062,-627.55255016,0.00022398,2]
[355220243,1741024241072,-503.70238531,0.00022398,2]
[355220244,1741024241083,-500.0,0.00022398,2]
[355220245,1741024241094,-500.0,0.00022398,2]
[355220246,1741024241105,-504.87380546,0.00022398,2]
[355220247,1741024241123,-500.0,0.00022398,2]
[355220248,1741024241135,-549.9160824,0.00022398,2]
[355220249,1741024241147,-500.0,0.00022398,2]
[355220250,1741024241159,-503.84109407,0.00022398,2]
[355220251,1741024241170,-500.0,0.00022398,2]
[355220252,1741024241182,-500.0,0.00022398,2]
[355220253,1741024241194,-500.0,0.00022398,2]
[355220254,1741024241206,-500.0,0.00022398,2]
[355220255,1741024241217,-500.0,0.00022398,2]
[355220256,1741024241229,-151.0,0.00022398,7]
[355220257,1741024241240,-151.0,0.00022398,7]
[355220258,1741024241251,-500.0,0.00022398,2]
[355220259,1741024241263,-505.53237846,0.00022398,2]
[355220260,1741024241279,-507.03845725,0.00022398,2]
[355220261,1741024241290,-500.0,0.00022398,2]
[355220262,1741024241301,-500.0,0.00022398,2]
[355220263,1741024241312,-438.02964896,0.00022398,2]
[355220264,1741024241326,-500.0,0.00022398,2]
[355220265,1741024241337,-500.0,0.00022398,2]
[355220266,1741024241348,-500.0,0.00022398,2]
[355220267,1741024241360,-500.0,0.00022398,2]
[355220268,1741024241379,-500.0,0.00022398,2]
[355220269,1741024241392,-500.0,0.00022398,2]
[355220270,1741024241402,-500.0,0.00022398,2]
[355220271,1741024241414,-500.0,0.00022398,2]
[355220272,1741024241425,-805.74,0.00022398,2]
[355220273,1741024241435,-500.0,0.00022398,2]
[355220274,1741024241445,-500.0,0.00022398,2]
[355220275,1741024241456,-500.0,0.00022398,2]
[355220276,1741024241466,-502.11629073,0.00022398,2]
[355220277,1741024241476,-500.0,0.00022398,2]
[355220278,1741024241486,-151.0,0.00022398,7]
[355220279,1741024241496,-505.92431478,0.00022398,2]
[355220280,1741024241505,-500.0,0.00022398,2]
[355220281,1741024241516,-500.0,0.00022398,2]
[355220282,1741024241526,-500.0,0.00022398,2]
[355220283,1741024241536,-500.0,0.00022398,2]
[355220284,1741024241546,-502.45044812,0.00022398,2]
[355220285,1741024241557,-500.0,0.00022398,2]
[355220286,1741024241568,-218.497605,0.00022398,7]
[355220287,1741024241578,-500.72790503,0.00022398,2]
[355220288,1741024241588,-151.768442,0.00022398,7]
[355220289,1741024241598,-500.0,0.00022398,2]
[355220290,1741024241607,-500.0,0.00022398,2]
[355220291,1741024241619,-200.0,0.00022398,2]
[355220292,1741024241629,-500.0,0.00022398,2]
[355220293,1741024241639,-500.0,0.00022398,2]
[355220294,1741024241763,-1405.5,0.00022398,2]
[355220295,1741024241774,-500.0,0.00022398,2]
[355220296,1741024241785,-500.0,0.00022398,2]
[355220297,1741024241795,-500.0,0.00022398,2]
[355220298,1741024241804,-522.62689282,0.00022398,2]
[355220299,1741024241814,-151.660654,0.00022398,7]
[355220300,1741024241824,-500.0,0.00022398,2]
[355220301,1741024241833,-500.0,0.00022398,2]
[355220302,1741024241843,-847.91,0.00022398,2]
[355220303,1741024241853,-503.23080828,0.00022398,2]
[355220304,1741024241863,-500.0,0.00022398,2]
[355220305,1741024241876,-500.0,0.00022398,2]
[355220306,1741024241885,-500.0,0.00022398,2]
[355220307,1741024241896,-500.0,0.00022398,2]
[355220308,1741024241906,-752.69,0.00022398,2]
[355220309,1741024241916,-500.0,0.00022398,2]
[355220310,1741024241927,-500.0,0.00022398,2]
[355220311,1741024241937,-500.0,0.00022398,2]
[355220312,1741024241947,-500.0,0.00022398,2]
[355220313,1741024241957,-500.0,0.00022398,2]
[355220314,1741024241967,-501.69867424,0.00022398,2]
[355220315,1741024241977,-500.0,0.00022398,2]
[355220316,1741024241988,-500.0,0.00022398,2]
[355220317,1741024241998,-403.15620718,0.00022398,2]
[355220318,1741024242008,-74233.10600469,0.00022399,5]
[355220319,1741024242018,-198917.01571212,0.00022399,5]
[355220320,1741024242028,-200.0,0.00022399,2]
[355220321,1741024242039,-151.0,0.00022399,7]
[355220322,1741024242049,-151.0,0.00022399,7]
[355220323,1741024242059,-216.369786,0.00022399,7]
[355220324,1741024242070,-216.369786,0.00022399,7]
[355220325,1741024242081,-1626.12,0.00022399,2]
[355220326,1741024242091,-151.0,0.00022399,7]
[355220327,1741024242100,-500.0,0.00022399,2]
[355220328,1741024242110,-500.0,0.00022399,2]
[355220329,1741024242123,-500.0,0.00022399,2]
[355220330,1741024242132,-1289.55,0.00022399,2]
[355220331,1741024242143,-950.56,0.00022399,2]
[355220332,1741024242152,-500.0,0.00022399,2]
[355220333,1741024242161,-500.0,0.00022399,2]
[355220334,1741024242170,-151.0,0.00022399,7]
[355220335,1741024242180,-500.0,0.00022399,2]
[355220336,1741024242189,-500.0,0.00022399,2]
[355220337,1741024242199,-722.37,0.00022399,2]
[355220338,1741024242209,-158.887575,0.00022399,7]
[355220339,1741024242219,-1378.89,0.00022399,2]
[355220340,1741024242230,-1532.43,0.00022399,2]
[355220341,1741024242240,-1318.84,0.00022399,2]
[355220342,1741024242249,-500.0,0.00022399,2]
[355220343,1741024242259,-9729.0,0.000224,14]
[355220344,1741024242271,-15031.0,0.000224,14]
[355220345,1741024242281,-6145.0,0.000224,14]
[355220346,1741024242292,-9469.0,0.000224,14]
[355220347,1741024242302,-2432.0,0.000224,14]
[355220348,1741024242315,-4865.0,0.000224,14]
[355220349,1741024242325,-608.0,0.000224,14]
[355220350,1741024242336,-1216.0,0.000224,14]
[355220351,1741024242346,-152.0,0.000224,14]
[355220352,1741024242357,-304.0,0.000224,14]
[355220353,1741024242370,-150.0,0.000224,14]
[355220354,1741024242380,-151.0,0.000224,7]
[355220355,1741024242392,-151.0,0.000224,7]
[355220356,1741024242402,-153.0,0.000224,2]
[355220357,1741024242412,-151.0,0.000224,7]
[355220358,1741024242423,-151.0,0.000224,7]
[355220359,1741024242433,-163.130928,0.000224,7]
[355220360,1741024242443,-216.369786,0.000224,7]
[355220361,1741024242454,-216.369786,0.000224,7]
[355220362,1741024242464,-153.0,0.000224,2]
[355220363,1741024242475,-216.369786,0.000224,7]
[355220364,1741024242485,-216.369786,0.000224,7]
[355220365,1741024242496,-153.0,0.000224,2]
[355220366,1741024242506,-153.0,0.000224,2]
[355220367,1741024242516,-151.0,0.000224,7]
[355220368,1741024242527,-151.0,0.000224,7]
[355220369,1741024242538,-306.0,0.000224,2]
[355220370,1741024242548,-151.0,0.000224,7]
[355220371,1741024242558,-151.0,0.000224,7]
[355220372,1741024242568,-153.0,0.000224,2]
[355220373,1741024242579,-1114.890786,0.000224,2]
[355220374,1741024242589,-151.0,0.000224,7]
[355220375,1741024242599,-151.0,0.000224,7]
[355220376,1741024242610,-558.078098,0.000224,2]
[355220377,1741024242623,-151.0,0.000224,6]
[355220378,1741024242633,-159.79,0.00022455,2]
[355220379,1741024242643,-722.59286789,0.00022455,2]
[355220380,1741024242653,-151.0,0.00022455,7]
[355220381,1741024242663,-151.0,0.00022455,7]
[355220382,1741024242674,-151.0,0.00022455,7]
[355220383,1741024242684,-160.37406782,0.00022464,2]
[355220384,1741024242695,-774.97801901,0.00022465,2]
[355220385,1741024242705,-337.92593324,0.00022465,2]
[355220386,1741024242715,-500.0,0.00022465,2]
[355220387,1741024242724,-500.0,0.00022465,2]
[355220388,1741024242735,-500.0,0.00022465,2]
[355220389,1741024242745,-500.0,0.00022465,2]
[355220390,1741024242755,-500.0,0.00022465,2]
[355220391,1741024242765,-500.0,0.00022465,2]
[355220392,1741024242775,-500.0,0.00022465,2]
[355220393,1741024242784,-500.0,0.00022465,2]
[355220394,1741024242794,-500.0,0.00022465,2]
[355220395,1741024242804,-500.0,0.00022465,2]
[355220396,1741024242813,-500.0,0.00022465,2]
[355220397,1741024242823,-500.0,0.00022465,2]
[355220398,1741024242834,-500.0,0.00022465,2]
[355220399,1741024242845,-770.81,0.00022465,2]
[355220400,1741024242856,-153.9438,0.00022465,7]
[355220401,1741024242870,-500.0,0.00022465,2]
[355220402,1741024242882,-500.0,0.00022465,2]
[355220403,1741024242892,-500.0,0.00022465,2]
[355220404,1741024242902,-500.0,0.00022465,2]
[355220405,1741024242912,-500.0,0.00022465,2]
[355220406,1741024242922,-500.0,0.00022465,2]
[355220407,1741024242933,-500.0,0.00022465,2]
[355220408,1741024242944,-500.0,0.00022465,2]
[355220409,1741024242954,-500.0,0.00022465,2]
[355220410,1741024242964,-500.0,0.00022465,2]
[355220411,1741024242975,-500.0,0.00022465,2]
[355220412,1741024242985,-690.71,0.00022465,2]
[355220413,1741024242995,-191.641704,0.00022465,7]
[355220414,1741024243005,-191.641704,0.00022465,7]
[355220415,1741024243015,-191.641704,0.00022465,7]
[355220416,1741024243025,-191.641704,0.00022465,7]
[355220417,1741024243035,-191.641704,0.00022465,7]
[355220418,1741024243046,-191.641704,0.00022465,7]
[355220419,1741024243056,-191.641704,0.00022465,7]
[355220420,1741024243066,-191.641704,0.00022465,7]
[355220421,1741024243077,-500.0,0.00022465,2]
[355220422,1741024243087,-500.0,0.00022465,2]
[355220423,1741024243097,-500.0,0.00022465,2]
[355220424,1741024243107,-500.0,0.00022465,2]
[355220425,1741024243119,-500.0,0.00022465,2]
[355220426,1741024243130,-501.88392608,0.00022465,2]
[355220427,1741024243140,-500.0,0.00022465,2]
[355220429,1741024243150,-500.0,0.00022465,2]
[355220432,1741024243161,-151.0,0.00022465,7]
[355220434,1741024243172,-500.0,0.00022465,2]
[355220436,1741024243183,-500.0,0.00022465,2]
[355220438,1741024243193,-500.0,0.00022465,2]
[355220439,1741024243202,-500.0,0.00022465,2]
[355220441,1741024243212,-500.0,0.00022465,2]
[355220444,1741024243223,-500.0,0.00022465,2]
[355220446,1741024243233,-500.0,0.00022465,2]
[355220448,1741024243244,-500.0,0.00022465,2]
[355220450,1741024243255,-500.0,0.00022465,2]
[355220451,1741024243265,-500.0,0.00022465,2]
[355220453,1741024243277,-500.0,0.00022465,2]
[355220455,1741024243287,-500.0,0.00022465,2]
[355220457,1741024243297,-151.0,0.00022465,7]
[355220460,1741024243307,-500.0,0.00022465,2]
[355220463,1741024243318,-216.369786,0.00022465,7]
[355220466,1741024243329,-216.369786,0.00022465,7]
[355220469,1741024243339,-500.0,0.00022465,2]
[355220471,1741024243350,-501.4763483,0.00022465,2]
[355220474,1741024243360,-500.0,0.00022465,2]
[355220476,1741024243373,-500.0,0.00022465,2]
[355220478,1741024243383,-500.0,0.00022465,2]
[355220480,1741024243394,-910.98,0.00022465,2]
[355220482,1741024243407,-500.0,0.00022465,2]
[355220484,1741024243417,-151.0,0.00022465,7]
[355220488,1741024243427,-500.0,0.00022465,2]
[355220491,1741024243436,-500.0,0.00022465,2]
[355220493,1741024243445,-500.0,0.00022465,2]
[355220495,1741024243455,-500.0,0.00022465,2]
[355220497,1741024243466,-500.0,0.00022465,2]
[355220499,1741024243480,-500.0,0.00022465,2]
[355220501,1741024243490,-500.0,0.00022465,2]
[355220503,1741024243500,-500.0,0.00022465,2]
[355220505,1741024243510,-500.0,0.00022465,2]
[355220507,1741024243520,-500.0,0.00022465,2]
[355220509,1741024243529,-500.0,0.00022465,2]
[355220511,1741024243539,-500.0,0.00022465,2]
[355220513,1741024243548,-500.0,0.00022465,2]
[355220515,1741024243558,-500.0,0.00022465,2]
[355220517,1741024243569,-271.939978,0.00022465,7]
[355220519,1741024243581,-500.0,0.00022465,2]
[355220521,1741024243592,-500.0,0.00022465,2]
[355220523,1741024243602,-500.0,0.00022465,2]
[355220525,1741024243612,-500.0,0.00022465,2]
[355220527,1741024243626,-500.0,0.00022465,2]
[355220529,1741024243638,-495.54,0.00022465,2]
[355220531,1741024243649,-500.0,0.00022465,2]
[355220533,1741024243660,-500.0,0.00022465,2]
[355220535,1741024243671,-500.0,0.00022465,2]
[355220537,1741024243681,-500.0,0.00022465,2]
[355220539,1741024243691,-500.0,0.00022465,2]
[355220541,1741024243701,-500.0,0.00022465,2]
[355220543,1741024243711,-500.0,0.00022465,2]
[355220545,1741024243720,-1327.82,0.00022465,2]
[355220547,1741024243730,-8098.77,0.00022465,2]
[355220549,1741024243740,-554.85,0.00022465,2]
[355220551,1741024243751,-500.0,0.00022465,2]
[355220553,1741024243761,-500.0,0.00022465,2]
[355220555,1741024243771,-500.0,0.00022465,2]
[355220557,1741024243781,-500.0,0.00022465,2]
[355220559,1741024243790,-500.0,0.00022465,2]
[355220561,1741024243799,-500.0,0.00022465,2]
[355220563,1741024243808,-500.0,0.00022465,2]
[355220565,1741024243817,-500.0,0.00022465,2]
[355220566,1741024243826,-500.0,0.00022465,2]
[355220567,1741024243835,-500.0,0.00022465,2]
[355220568,1741024243846,-500.0,0.00022465,2]
[355220569,1741024243856,-500.0,0.00022465,2]
[355220570,1741024243869,-501.12869683,0.00022465,2]
[355220571,1741024243879,-500.0,0.00022465,2]
[355220572,1741024243890,-500.0,0.00022465,2]
[355220573,1741024243899,-500.0,0.00022465,2]
[355220574,1741024243909,-500.0,0.00022465,2]
[355220575,1741024243919,-258.505134,0.00022465,7]
[355220576,1741024243930,-502.12871722,0.00022465,2]
[355220580,1741024244033,-500.0,0.00022465,2]
[355220581,1741024244060,-500.0,0.00022465,2]
[355220582,1741024244070,-503.76251601,0.00022465,2]
[355220583,1741024244080,-1099.34,0.00022465,2]
[355220584,1741024244090,-500.99792255,0.00022465,2]
[355220585,1741024244100,-500.0,0.00022465,2]
[355220587,1741024244110,-500.0,0.00022465,2]
[355220589,1741024244123,-500.0,0.00022465,2]
[355220591,1741024244132,-500.0,0.00022465,2]
[355220593,1741024244142,-500.0,0.00022465,2]
[355220595,1741024244152,-500.0,0.00022465,2]
[355220597,1741024244162,-500.0,0.00022465,2]
[355220599,1741024244171,-500.0,0.00022465,2]
[355220600,1741024244181,-500.0,0.00022465,2]
[355220601,1741024244190,-500.0,0.00022465,2]
[355220602,1741024244201,-500.0,0.00022465,2]
[355220603,1741024244211,-500.0,0.00022465,2]
[355220604,1741024244221,-500.0,0.00022465,2]
[355220605,1741024244231,-500.0,0.00022465,2]
[355220606,1741024244241,-500.0,0.00022465,2]
[355220607,1741024244251,-500.0,0.00022465,2]
[355220608,1741024244261,-500.0,0.00022465,2]
[355220609,1741024244274,-500.0,0.00022465,2]
[355220610,1741024244286,-500.0,0.00022465,2]
[355220611,1741024244296,-500.0,0.00022465,2]
[355220612,1741024244306,-24903.04,0.00022465,2]
[355220613,1741024244316,-500.0,0.00022465,2]
[355220614,1741024244327,-191.641704,0.00022466,7]
[355220615,1741024244336,-191.641704,0.00022466,7]
[355220616,1741024244347,-151.0,0.00022466,7]
[355220617,1741024244356,-151.0,0.00022466,7]
[355220618,1741024244367,-212.014984,0.00022466,7]
[355220619,1741024244379,-216.369786,0.00022466,7]
[355220620,1741024244389,-216.369786,0.00022466,7]
[355220621,1741024244399,-151.0,0.00022466,7]
[355220622,1741024244411,-222000.0,0.00022466,2]
[355220623,1741024244422,-500.0,0.00022473,2]
[355220624,1741024244433,-500.0,0.00022473,2]
[355220625,1741024244443,-552.78280078,0.00022473,2]
[355220626,1741024244453,-500.0,0.00022473,2]
[355220627,1741024244463,-500.0,0.00022473,2]
[355220628,1741024244473,-500.0,0.00022473,2]
[355220629,1741024244483,-500.0,0.00022473,2]
[355220630,1741024244493,-500.0,0.00022473,2]
[355220631,1741024244503,-213.3345834,0.000225,2]
[355220632,1741024244513,-153.0,0.000225,2]
[355220634,1741024244523,-309.862757,0.000225,2]
[355220636,1741024244532,-153.0,0.000225,2]
[355220638,1741024244542,-151.0,0.000225,9]
[355220640,1741024244552,-151.0,0.000225,6]
[355220642,1741024244562,-151.0,0.000225,6]
[355220644,1741024244571,-151.0,0.000225,8]
[355220646,1741024244581,-151.0,0.000225,6]
[355220648,1741024244592,-558.078098,0.00022521,2]
[355220650,1741024244602,-376.68714,0.00022546,2]
[355220652,1741024244611,-13783.05,0.00022547,2]
[355220654,1741024244625,-671.26,0.00022547,2]
[355220656,1741024244636,-500.0,0.00022547,2]
[355220658,1741024244645,-500.0,0.00022547,2]
[355220660,1741024244654,-800.0,0.0002255,2]
[355220662,1741024244664,-864.0,0.0002255,2]
[355220664,1741024244674,-933.12,0.0002255,2]
[355220666,1741024244684,-1600.0,0.0002255,2]
[355220668,1741024244694,-167.82405,0.0002255,2]
[355220670,1741024244704,-500.0,0.00022561,2]
[355220672,1741024244713,-500.0,0.00022562,2]
[355220674,1741024244722,-500.0,0.00022562,2]
[355220676,1741024244732,-500.0,0.00022562,2]